[Event "Kashem Chowdhury Rating-A 2019"]
[Site "Dhaka"]
[Date "2019.05.11"]
[Round "8.7"]
[White "Ghosh, Chanchal Kumer"]
[Black "Ahmed, Mahtabuddin"]
[Result "1-0"]
[ECO "C41"]
[WhiteElo "2051"]
[BlackElo "2036"]
[Annotator "NA RC"]
[PlyCount "71"]
[EventDate "2019.05.04"]
[EventType "swiss"]
[EventCountry "BAN"]
[SourceTitle "playchess.com"]
[Source "ChessBase"]
[SourceQuality "1"]
[TimeControl "5400+30"]

{[%evp 8,71,58,40,77,54,64,54,77,44,85,70,125,83,32767,6,1,0,154,32767,209,225,310,332,320,243,248,261,329,373,402,395,693,164,311,291,292,319,293,285,435,114,425,283,225,278,265,319,495,257,295,281,32767,89,91,79,96,2,0,-31,32767,583,29981,29983,29998,29999]} 1. e4 {[%emt 0:24:00]} e5 {[%emt 0:00:00]} 2. Nf3 {[%emt 0:00:10]} d6 {[%emt 0:00:00]} 3. d4 {[%emt 0:02:01]} Nd7 {[%emt 0:00:00]} 4. Bc4 {[%emt 0:00:48]} c6 {[%emt 0:00:00]} 5. dxe5 {[%emt 0:00:32]} dxe5 {[%emt 0:00:59]} 6. Ng5 {[%emt 0:10:22]} Nh6 {[%emt 0:00:36]} 7. O-O {[%emt 0:02:33]} Qe7 {[%emt 0:03:21] C41: Philidor Defence} 8. a4 {[%emt 0:09:26]} a5 {[%emt 0:03:37]} (8... f6 9. Nf3 Nf7 10. b3 Nc5 11. Ba3 Qc7 12. Nc3 Ne6 13. Bxf8 Kxf8 14. Qd2 g6 15. Rfd1 {0-1 (72) Deac,B (2385)-Miroshnichenko,E (2609) Calimanesti 2014}) 9. Be3 $146 {[%emt 0:01:16]} ({Predecessor:} 9. Qe2 Nc5 10. Rd1 f6 11. Nxh7 Bg4 12. f3 Rxh7 13. fxg4 Nf7 14. Be3 Ne6 15. Bxe6 Qxe6 {0-1 (47) Kopinits,A (2267)-Runic,Z (2395) Graz 2013}) 9... g6 {[%emt 0:04:42]} 10. h3 {[%emt 0:04:21]} Nc5 {[%emt 0:05:20]} 11. f4 {[%emt 0:09:14]} (11. Qf3 $16) 11... f6 {[%emt 0:08:47]} 12. Nf3 {[%emt 0:04:16]} Nxe4 $2 {[%emt 0:07:25]} (12... exf4 $11 13. Bxf4 Be6) 13. fxe5 {[%emt 0:02:56]} f5 {[%emt 0:02:25] [#]} 14. Nbd2 $1 {[%emt 0:00:41]} Nxd2 {[%emt 0:01:35]} (14... Be6 $142 15. Bxe6 Qxe6 16. Nxe4 fxe4) 15. Qxd2 {[%emt 0:00:26]} Nf7 {[%emt 0:01:07]} 16. e6 {[%emt 0:02:50]} Nd6 {[%emt 0:01:40] [#]} 17. Bd3 $1 {[%emt 0:06:02]} Bxe6 {[%emt 0:18:30]} 18. Bg5 {[%emt 0:02:40]} Qc7 {[%emt 0:16:27]} 19. Rae1 {[%emt 0:04:45]} Kd7 {[%emt 0:04:11]} (19... Ne4 $142 20. Bxe4 Bb4) 20. Bf6 $2 {[%emt 0:03:16]} (20. Qc3) 20... Rg8 {[%emt 0:01:07]} 21. Rxe6 {[%emt 0:04:09]} Kxe6 {[%emt 0:00:43]} 22. Re1+ {[%emt 0:00:23]} Kd7 {[%emt 0:08:33]} 23. Bc4 $1 {[%emt 0:00:45]} Rg7 {[%emt 0:00:19] [#]} (23... Qb6+ $142 24. Kh1 Rg7) 24. Be6+ $1 {[%emt 0:00:44]} Ke8 {[%emt 0:00:02]} 25. Bxf5+ {[%emt 0:01:21]} Re7 {[%emt 0:00:57]} 26. Bxe7 {[%emt 0:00:23]} Bxe7 {[%emt 0:00:07]} 27. Be6 {[%emt 0:00:54]} Nf7 {[%emt 0:03:44]} (27... Qb6+ $142 28. Kh1 Qxb2) 28. Qd4 {[%emt 0:00:53]} Kf8 {[%emt 0:01:59]} 29. Bxf7 {[%emt 0:01:16]} Kxf7 {[%emt 0:00:02] [#]} 30. Ne5+ {[%emt 0:00:08]} (30. Qc4+ $1 $18 Kg7 31. Nd4) 30... Kg8 {[%emt 0:00:49]} 31. Qc4+ {[%emt 0:00:31]} Kh8 {[%emt 0:00:13] [#]} 32. Kh1 {[%emt 0:00:46]} (32. Qf4 $1 $16 Bc5+ 33. Kh1) 32... Bf6 {[%emt 0:00:52]} 33. Ng4 {[%emt 0:00:30]} Rf8 {[%emt 0:01:09]} 34. Nxf6 {[%emt 0:00:22]} Rxf6 {[%emt 0:00:04]} 35. Re8+ {[%emt 0:00:08]} Kg7 {[%emt 0:00:05]} 36. Rg8+ {[%emt 0:00:04]} 1-0

[Event "Kashem Chowdhury Rating-A 2019"]
[Site "Dhaka"]
[Date "2019.05.11"]
[Round "8.11"]
[White "Tajwar, Zia Tahsin"]
[Black "Md. Masum Hossain"]
[Result "*"]
[ECO "D02"]
[WhiteElo "1969"]
[BlackElo "1995"]
[Annotator "NA RC"]
[PlyCount "121"]
[EventDate "2019.05.04"]
[EventType "swiss"]
[EventCountry "BAN"]
[SourceTitle "playchess.com"]
[Source "ChessBase"]
[SourceQuality "1"]
[TimeControl "5400+30"]

1. d4 {[%emt 1:30:30]} Nf6 {[%emt 1:30:30]} 2. Nf3 {[%emt 0:00:30]} e6 {[%emt 0:00:30]} 3. Bf4 {[%emt 0:00:30]} d5 {[%emt 0:00:30]} 4. e3 {[%emt 0:00:30]} Bd6 {[%emt 0:00:30]} 5. Bg3 {[%emt 0:00:30]} Nbd7 {[%emt 0:00:30]} 6. Nbd2 {[%emt 0:00:30]} Qe7 {[%emt 0:00:30]} 7. Ne5 {[%emt 0:00:30]} Nb6 {[%emt 0:00:30]} 8. f4 {[%emt 0:00:30]} g6 {[%emt 0:00:30]} 9. Bh4 {[%emt 0:00:30]} Qd8 {[%emt 0:00:30]} 10. Bb5+ {[%emt 0:00:30]} Bd7 {[%emt 0:00:30]} 11. Nxd7 {[%emt 0:00:30]} Nbxd7 {[%emt 0:00:30]} 12. Bxd7+ {[%emt 0:00:30]} Kxd7 {[%emt 0:00:30]} 13. Nf3 {[%emt 0:00:30]} Be7 {[%emt 0:00:30]} 14. Ne5+ {[%emt 0:00:30]} Ke8 {[%emt 0:00:30]} 15. Bxf6 {[%emt 0:00:30]} Bxf6 {[%emt 0:00:30]} 16. O-O {[%emt 0:00:30]} Bg7 {[%emt 0:00:30]} 17. Qg4 {[%emt 0:00:30]} Qe7 {[%emt 0:00:30]} 18. Nd3 {[%emt 0:00:30]} h5 {[%emt 0:00:30]} 19. Qf3 {[%emt 0:00:30]} Rc8 {[%emt 0:00:30]} 20. a4 {[%emt 0:00:30]} Kf8 {[%emt 0:00:30]} 21. c3 {[%emt 0:00:30]} Bf6 {[%emt 0:00:30]} 22. e4 {[%emt 0:00:30]} dxe4 {[%emt 0:00:30]} 23. Qxe4 {[%emt 0:00:30]} c6 {[%emt 0:00:30]} 24. b4 {[%emt 0:00:30]} Qd6 {[%emt 0:00:30]} 25. a5 {[%emt 0:00:30]} a6 {[%emt 0:00:30]} 26. Nc5 {[%emt 0:00:30]} Rc7 {[%emt 0:00:30]} 27. Rae1 {[%emt 0:00:30]} Kg7 {[%emt 0:00:30]} 28. Qf3 {[%emt 0:00:30]} Kh7 {[%emt 0:00:30]} 29. Re3 {[%emt 0:00:30]} Qd5 {[%emt 0:00:30]} 30. Qe2 {[%emt 0:00:30]} Qf5 {[%emt 0:00:30]} 31. h3 {[%emt 0:00:30]} h4 {[%emt 0:00:30]} 32. Qe1 {[%emt 0:00:30]} Rg8 {[%emt 0:00:30]} 33. Re5 {[%emt 0:00:30]} Bxe5 {[%emt 0:00:30]} 34. fxe5 {[%emt 0:00:30]} Qh5 {[%emt 0:00:30]} 35. Ne4 {[%emt 0:00:30]} Kg7 {[%emt 0:00:30]} 36. Qf2 {[%emt 0:00:30]} Qf5 {[%emt 0:00:30]} 37. Qe3 {[%emt 0:00:30]} Qh5 {[%emt 0:00:30]} 38. Nf6 {[%emt 0:00:30]} Qh8 {[%emt 0:00:30]} 39. Nxg8 {[%emt 0:00:30]} Kxg8 {[%emt 0:00:30]} 40. Qg5 {[%emt 0:00:30]} Rd7 {[%emt 0:00:30]} 41. Rf4 {[%emt 0:00:30]} Qg7 {[%emt 0:00:30]} 42. Rxh4 {[%emt 0:00:30]} Kf8 {[%emt 0:00:30]} 43. Rf4 {[%emt 0:00:30]} Kg8 {[%emt 0:00:30]} 44. h4 {[%emt 0:00:30]} Qh7 {[%emt 0:00:30]} 45. g4 {[%emt 0:00:30]} Kf8 {[%emt 0:00:30]} 46. Kg2 {[%emt 0:00:30]} Ke8 {[%emt 0:00:30]} 47. Kg3 {[%emt 0:00:30]} Re7 {[%emt 0:00:30]} 48. Rf6 {[%emt 0:00:30]} Rd7 {[%emt 0:00:30]} 49. Qe3 {[%emt 0:00:30]} Rd8 {[%emt 0:00:30]} 50. Qd3 {[%emt 0:00:30]} Qh8 {[%emt 0:00:30]} 51. Qc4 {[%emt 0:00:30]} Rd5 {[%emt 0:00:30]} 52. Qd3 {[%emt 0:00:30]} Rd8 {[%emt 0:00:30]} 53. Qf3 {[%emt 0:00:30]} Rd7 {[%emt 0:00:30]} 54. h5 {[%emt 0:00:30]} gxh5 {[%emt 0:00:30]} 55. gxh5 {[%emt 0:00:30]} Qg7+ {[%emt 0:00:30]} 56. Qg4 {[%emt 0:00:30]} Qxg4+ {[%emt 0:00:30]} 57. Kxg4 {[%emt 0:00:30]} Kf8 {[%emt 0:00:30]} 58. Kg5 {[%emt 0:00:30]} Kg7 {[%emt 0:00:30]} 59. h6+ {[%emt 0:00:30]} Kh7 {[%emt 0:00:30]} 60. Rf3 {[%emt 0:00:30]} Rc7 {[%emt 0:00:30]} 61. Kf6 {[%emt 0:00:30]} *

[Event "Kashem Chowdhury Rating-A 2019"]
[Site "Dhaka"]
[Date "2019.05.11"]
[Round "8.11"]
[White "Tajwar, Zia Tahsin"]
[Black "Md. Masum Hossain"]
[Result "1-0"]
[ECO "D02"]
[WhiteElo "1969"]
[BlackElo "1995"]
[Annotator "NA RC"]
[PlyCount "59"]
[EventDate "2019.05.04"]
[EventType "swiss"]
[EventCountry "BAN"]
[SourceTitle "playchess.com"]
[Source "ChessBase"]
[SourceQuality "1"]
[TimeControl "5400+30"]

{[%evp 8,59,-4,-4,0,-6,0,0,0,-2,62,50,43,113,300,311,334,386,637,95,403,370,575,590,551,625,597,641,638,717,653,740,664,612,616,32767,32767,613,941,1082,32767,1224,1123,1395,1402,1515,1722,2114,2392,29984,29984,32767,29990,29991]} 1. d4 {[%emt 1:30:30]} d5 {[%emt 1:30:30]} 2. Bf4 {[%emt 0:00:30]} Nf6 {[%emt 0:00:30]} 3. e3 {[%emt 0:00:30]} c5 {[%emt 0:00:30]} 4. Nd2 {[%emt 0:00:30]} (4. c3 Nc6 5. Nd2 Qb6 6. Qb3 Nh5 7. Qxb6 axb6 8. Bc7 cxd4 9. exd4 e5 10. Bxe5 Nxe5 11. dxe5 Bc5 12. g3 O-O {1-0 (76) Aronian,L (2765)-Caruana,F (2832) London 2018}) 4... Nc6 {[%emt 0:00:30]} 5. Ngf3 {[%emt 0:00:30]} Qb6 {[%emt 0:00:30]} 6. dxc5 {[%emt 0:00:30] D00: 1 d4 d5: Unusual lines} Qxb2 {[%emt 0:00:30]} 7. Rb1 {[%emt 0:00:30]} Qc3 8. Bb5 {[%emt 0:00:30]} Nd7 {[%emt 0:01:00]} ({Black should play} 8... e6 $11) 9. O-O {[%emt 0:00:30]} e6 {[%emt 0:00:30] [#]} 10. e4 $1 {[%emt 0:00:30]} Qxc5 $146 {[%emt 0:00:30]} ({Predecessor:} 10... a6 $16 {was worth a try.} 11. Bd3 Nxc5 12. Re1 Nxd3 13. cxd3 dxe4 14. Nxe4 {1-0 (25) Rusev,K (2538)-Heinemann,J (2275) Albena 2017}) 11. c4 {[%emt 0:00:30]} dxc4 {[%emt 0:00:30]} 12. Nxc4 {[%emt 0:00:30]} Be7 $2 {[%emt 0:00:30]} (12... a6) 13. Ne1 $2 {[%emt 0:00:30]} (13. Be3 $18 {and White stays clearly on top.} Qh5 14. Nd6+ Kf8 15. Nxc8) 13... O-O $2 {[%emt 0:00:30] [#]} (13... Qd4 $16) 14. Be3 $1 {[%emt 0:00:30]} Rd8 {[%emt 0:00:30]} (14... Nd4 $142 15. Bxd4 Qc7) 15. Bxc5 {[%emt 0:00:30]} Nxc5 {[%emt 0:00:30]} 16. Qh5 {[%emt 0:00:30]} g6 {[%emt 0:00:30]} 17. Qh6 {[%emt 0:00:30]} Nxe4 {[%emt 0:00:30]} 18. Bxc6 {[%emt 0:00:30]} bxc6 {[%emt 0:00:30]} 19. Nf3 {[%emt 0:00:30]} Ba6 {[%emt 0:00:30]} 20. Rbc1 {[%emt 0:00:30]} Rd5 {[%emt 0:00:30]} 21. Qe3 {[%emt 0:00:30]} f5 {[%emt 0:00:30]} 22. Qb3 {[%emt 0:00:30]} g5 {[%emt 0:00:30]} 23. Ne3 {[%emt 0:00:30]} g4 {[%emt 0:00:30]} 24. Nxd5 {[%emt 0:00:30]} cxd5 {[%emt 0:00:30]} 25. Nd4 {[%emt 0:00:30]} Kf7 {[%emt 0:00:30] [#]} 26. Nxe6 $1 {[%emt 0:00:30]} Kxe6 {[%emt 0:00:30]} 27. Rc6+ {[%emt 0:00:30] Double Attack} Ke5 {[%emt 0:00:30]} 28. Rxa6 {[%emt 0:00:30]} Bc5 {[%emt 0:00:30]} 29. Qb2+ {[%emt 0:00:30]} Bd4 {[%emt 0:00:30] [#]} 30. Qb7 {[%emt 0:00:30] Double Attack} 1-0

[Event "Kashem Chowdhury Rating-A 2019"]
[Site "Dhaka"]
[Date "2019.05.12"]
[Round "9.8"]
[White "Ahmed, Sk. Nasir"]
[Black "Mohammad, Javed"]
[Result "1-0"]
[ECO "A39"]
[WhiteElo "2170"]
[BlackElo "2152"]
[Annotator "RC"]
[PlyCount "105"]
[EventDate "2019.05.04"]
[EventType "swiss"]
[EventCountry "BAN"]
[SourceTitle "playchess.com"]
[Source "ChessBase"]
[SourceQuality "1"]
[TimeControl "5400+30"]

1. c4 {[%emt 0:00:00]} Nf6 {[%emt 0:02:02]} 2. g3 {[%emt 0:00:15]} c5 {[%emt 0:01:29]} 3. Bg2 {[%emt 0:00:26]} Nc6 {[%emt 0:00:06]} 4. Nf3 {[%emt 0:00:36]} g6 {[%emt 0:00:19]} 5. d4 {[%emt 0:01:21]} cxd4 {[%emt 0:00:07]} 6. Nxd4 {[%emt 0:00:07]} Bg7 {[%emt 0:00:04]} 7. Nc3 {[%emt 0:00:35]} O-O {[%emt 0:00:28]} 8. O-O {[%emt 0:00:15]} Qb6 {[%emt 0:07:17]} 9. Nc2 {[%emt 0:04:35]} d6 {[%emt 0:02:48]} 10. b3 {[%emt 0:05:24]} Be6 {[%emt 0:11:12]} 11. Rb1 {[%emt 0:05:43]} a5 {[%emt 0:09:15]} 12. Bb2 {[%emt 0:13:06]} Rfc8 {[%emt 0:02:08]} 13. e4 {[%emt 0:02:39]} Bg4 {[%emt 0:14:59]} 14. Qd2 {[%emt 0:01:33]} Ne5 {[%emt 0:00:39]} 15. Nd4 {[%emt 0:07:45]} Nc6 {[%emt 0:05:49]} 16. Ndb5 {[%emt 0:09:19]} Ne5 {[%emt 0:02:41]} 17. Na4 {[%emt 0:00:22]} Qd8 {[%emt 0:03:47]} 18. h3 {[%emt 0:10:19]} Bd7 {[%emt 0:02:51]} 19. f4 {[%emt 0:00:15]} Nc6 {[%emt 0:06:01]} 20. Qf2 {[%emt 0:11:16]} Ra6 {[%emt 0:25:58]} 21. e5 {[%emt 0:01:35]} Ne8 {[%emt 0:00:00]} 22. Rbd1 {[%emt 0:00:35]} b6 {[%emt 0:00:00]} 23. exd6 {[%emt 0:01:29]} exd6 {[%emt 0:00:00]} 24. Bxg7 {[%emt 0:00:34]} Kxg7 {[%emt 0:00:00]} 25. Nxd6 {[%emt 0:00:38]} Nxd6 {[%emt 0:00:00]} 26. Rxd6 {[%emt 0:00:03]} Qc7 {[%emt 0:00:00]} 27. Rfd1 {[%emt 0:00:27]} Be8 {[%emt 0:00:00]} 28. Qb2+ {[%emt 0:03:32]} Kg8 {[%emt 0:00:00]} 29. Qf6 {[%emt 0:00:04]} Ne7 {[%emt 0:00:00]} 30. Rxb6 {[%emt 0:05:26]} Rxb6 {[%emt 0:00:00]} 31. Nxb6 {[%emt 0:00:03]} Rb8 {[%emt 0:03:47]} 32. Nd5 {[%emt 0:03:23]} Nxd5 {[%emt 0:01:14]} 33. Bxd5 {[%emt 0:00:34]} a4 {[%emt 0:00:09]} 34. Re1 {[%emt 0:02:33]} axb3 {[%emt 0:01:05]} 35. axb3 {[%emt 0:00:04]} Qc5+ {[%emt 0:00:21]} 36. Kg2 {[%emt 0:01:52]} Qf8 {[%emt 0:00:28]} 37. Re3 {[%emt 0:01:33]} Qg7 {[%emt 0:01:26]} 38. Qxg7+ {[%emt 0:00:51]} Kxg7 {[%emt 0:00:00]} 39. Re7 {[%emt 0:08:23]} Kf6 {[%emt 0:00:00]} 40. Rb7 {[%emt 0:00:00]} Rc8 {[%emt 0:00:00]} 41. Kf2 {[%emt 0:00:00]} h5 {[%emt 0:00:35]} 42. Ke3 {[%emt 0:00:00]} Rd8 {[%emt 0:01:05]} 43. b4 {[%emt 0:00:00]} Bd7 {[%emt 0:00:42]} 44. b5 {[%emt 0:00:00]} Re8+ {[%emt 0:00:36]} 45. Kf3 {[%emt 0:00:00]} Be6 {[%emt 0:00:31]} 46. Bxe6 {[%emt 0:00:00]} Kxe6 {[%emt 0:00:01]} 47. c5 {[%emt 0:00:00]} f5 {[%emt 0:00:50]} 48. b6 {[%emt 0:00:00]} Rc8 {[%emt 0:00:37]} 49. Rc7 {[%emt 0:00:00]} Rxc7 {[%emt 0:00:17]} 50. bxc7 {[%emt 0:00:00]} Kd7 {[%emt 0:00:07]} 51. Ke3 {[%emt 0:00:00]} Kxc7 {[%emt 0:00:09]} 52. Kd4 {[%emt 0:00:00]} Kc6 {[%emt 0:01:11]} 53. h4 {[%emt 0:00:00] Kd5+ [%clk 0:00:00] Ke4+} 1-0

[Event "Kashem Chowdhury Rating-A 2019"]
[Site "Dhaka"]
[Date "2019.05.12"]
[Round "9.10"]
[White "Abdul, Momin"]
[Black "Md. Jamal Uddin"]
[Result "1-0"]
[ECO "C54"]
[WhiteElo "2037"]
[BlackElo "2084"]
[Annotator "NA RC"]
[PlyCount "101"]
[EventDate "2019.05.04"]
[EventType "swiss"]
[EventCountry "BAN"]
[SourceTitle "playchess.com"]
[Source "ChessBase"]
[SourceQuality "1"]
[TimeControl "5400+30"]

{[%evp 8,101,26,22,18,14,18,11,25,15,5,10,32,27,35,20,35,20,27,12,7,-28,0,-15,0,-26,0,0,14,17,22,37,49,11,17,8,41,25,66,37,82,70,88,32767,175,70,76,51,75,53,172,179,32767,32767,160,177,305,135,214,118,213,194,32767,876,770,459,569,535,568,710,768,779,682,835,647,827,749,773,32767,652,5506,762,1030,682,1339,5392,29991,557,29992,29974,32767,29976,29991,29992,29992,29993]} 1. e4 {[%emt 0:06:31]} e5 {[%emt 0:01:18]} 2. Nf3 {[%emt 0:00:04]} Nc6 {[%emt 0:00:13]} 3. Bc4 {[%emt 0:00:09]} Bc5 {[%emt 0:03:28]} 4. c3 {[%emt 0:01:17]} Nf6 {[%emt 0:02:04]} 5. d3 {[%emt 0:00:06]} d6 {[%emt 0:00:39]} 6. O-O {[%emt 0:00:26]} O-O {[%emt 0:01:46]} 7. Bb3 {[%emt 0:00:24]} Bb6 {[%emt 0:01:47]} 8. h3 {[%emt 0:00:48] C54: Giuoco Piano: 4 c3 Nf6, main lines with 5 d4 and 5 d3} Ne7 {[%emt 0:00:44]} 9. Nbd2 {[%emt 0:01:01]} a6 {[%emt 0:00:48]} (9... c6 10. Re1 Ng6 11. d4 Re8 12. Bc2 h6 13. Nf1 d5 14. exd5 e4 15. Ne5 cxd5 16. Nxg6 fxg6 {0-1 (41) Volokitin,A (2628)-Aronian,L (2805) Riadh 2017}) 10. Re1 {[%emt 0:00:34]} Ng6 {[%emt 0:01:28]} 11. Nf1 {[%emt 0:00:07]} Be6 $146 {[%emt 0:06:49]} ({Predecessor:} 11... Nh5 12. d4 Qe8 13. Be3 Nhf4 14. Ng3 Qe7 15. Kh2 Qf6 16. Nh5 {1-0 (27) Lobzhanidze,A (1979)-Diener,C (1886) Braunfels 2017}) 12. Bc2 {[%emt 0:04:40]} d5 {[%emt 0:04:10]} 13. exd5 {[%emt 0:02:02]} Nxd5 {[%emt 0:00:53]} 14. Nxe5 {[%emt 0:01:10]} Nxe5 {[%emt 0:00:16]} 15. Rxe5 {[%emt 0:00:37]} Bxf2+ $1 {[%emt 0:00:36]} 16. Kh1 {[%emt 0:00:43]} Bh4 {[%emt 0:04:58]} 17. d4 {[%emt 0:03:45]} Bf6 {[%emt 0:01:22]} 18. Re2 {[%emt 0:01:20]} Qd6 {[%emt 0:02:19]} 19. Qd3 {[%emt 0:00:50]} g6 {[%emt 0:00:25]} 20. Qf3 {[%emt 0:00:52]} Bg7 {[%emt 0:01:38]} 21. Bg5 {[%emt 0:00:21]} c6 {[%emt 0:05:45]} 22. Rae1 {[%emt 0:04:39]} Rae8 {[%emt 0:02:50]} 23. Nd2 {[%emt 0:01:50]} f6 {[%emt 0:14:50]} 24. Ne4 {[%emt 0:01:35]} Qd8 {[%emt 0:01:08]} 25. Bd2 {[%emt 0:02:23]} Nc7 {[%emt 0:02:36] [#]} ({Black should try} 25... Bf7 $14) 26. Qg3 {[%emt 0:03:03]} (26. Bf4 $1 $16) 26... Bc4 $1 {[%emt 0:04:57]} 27. Bb3 {[%emt 0:03:23]} Bxb3 {[%emt 0:01:29]} 28. axb3 {[%emt 0:00:03]} Nb5 {[%emt 0:10:57]} (28... f5 $1 $14 29. Bg5 Qd7) 29. Nc5 {[%emt 0:03:38]} Rxe2 {[%emt 0:01:28]} 30. Rxe2 {[%emt 0:00:03]} Qc8 {[%emt 0:00:42] [#]} 31. Qe1 $1 {[%emt 0:04:47]} Nd6 $2 {[%emt 0:03:53] [#]} (31... g5 $16 32. Re7 Nc7) 32. Re7 {[%emt 0:03:52]} (32. Bf4 $1 $18 {[%cal Rf4d6] is the precise move to win.} Nf7 33. Re7) 32... Rf7 {[%emt 0:03:15] [#]} (32... Nf5 $16) 33. Bf4 {[%emt 0:04:03]} (33. Re6 $1 $18 Bf8) 33... Bf8 {[%emt 0:00:32]} (33... Rxe7 $16 {might work better.} 34. Qxe7 Bf8 35. Qxf6 Ne8) 34. Re6 {[%emt 0:04:54]} Nb5 $2 {[%emt 0:04:42]} (34... Nf5 35. Re8 Re7 36. Qxe7 (36. Rxc8 Rxe1+ 37. Kh2 Kg7 $16) 36... Nxe7 37. Rxc8 Nxc8) 35. Re8 {[%emt 0:08:55]} Qf5 {[%emt 0:00:50]} 36. Ne6 {[%emt 0:05:56]} g5 {[%emt 0:01:20]} 37. Bb8 {[%emt 0:01:57]} ({Not} 37. Nxf8 Rxf8 38. Bg3 h5 $16) 37... Qd3 {[%emt 0:05:24]} 38. Kh2 {[%emt 0:02:49]} h5 {[%emt 0:01:00]} 39. Nxf8 {[%emt 0:00:25]} Rxf8 {[%emt 0:02:28]} 40. Qe6+ {[%emt 0:01:21]} Kg7 {[%emt 0:00:16]} 41. Rxf8 {[%emt 0:00:34]} Kxf8 {[%emt 0:00:01]} 42. Qxf6+ {[%emt 0:00:21] Double Attack} Ke8 {[%emt 0:00:17]} 43. Qxg5 {[%emt 0:00:34]} Qd1 {[%emt 0:00:40]} 44. b4 {[%emt 0:01:27]} (44. Qg8+ $142 Ke7 45. Bf4) 44... Kd7 {[%emt 0:00:36]} 45. Be5 {[%emt 0:01:12]} Ke6 {[%emt 0:00:36]} 46. c4 {[%emt 0:00:40]} Qe2 {[%emt 0:02:07]} 47. Qf6+ {[%emt 0:00:46]} Kd7 {[%emt 0:00:00]} 48. Qf5+ {[%emt 0:00:22]} Ke7 {[%emt 0:00:18]} 49. cxb5 {[%emt 0:00:14]} axb5 {[%emt 0:00:05]} 50. Qf6+ {[%emt 0:00:32]} Ke8 {[%emt 0:00:10]} 51. Qe6+ {[%emt 0:00:34]} 1-0

[Event "Kashem Chowdhury Rating-A 2019"]
[Site "Dhaka"]
[Date "2019.05.12"]
[Round "9.11"]
[White "Swarnavo Choudhury"]
[Black "Tajwar, Zia Tahsin"]
[Result "1/2-1/2"]
[ECO "D02"]
[WhiteElo "1865"]
[BlackElo "1969"]
[Annotator "NA RC"]
[PlyCount "48"]
[EventDate "2019.05.04"]
[EventType "swiss"]
[EventCountry "BAN"]
[SourceTitle "playchess.com"]
[Source "ChessBase"]
[SourceQuality "1"]
[TimeControl "5400+30"]

{[%evp 18,48,0,0,13,0,16,0,52,9,32767,80,95,84,32767,80,105,104,92,32767,89,0,49,60,52,47,44,36,37,0,-7,-31,-42]} 1. d4 {[%emt 1:30:30]} d5 {[%emt 1:30:30]} 2. Bf4 {[%emt 0:00:30]} Nf6 {[%emt 0:00:30]} 3. Nf3 {[%emt 0:00:30]} c5 {[%emt 0:00:30]} 4. e3 {[%emt 0:00:30]} Nc6 {[%emt 0:00:30]} 5. Nbd2 {[%emt 0:00:30]} e6 {[%emt 0:00:30]} 6. c3 {[%emt 0:00:30]} Be7 {[%emt 0:00:30]} 7. Bd3 {[%emt 0:00:30]} Nh5 {[%emt 0:00:30]} 8. Bg3 {[%emt 0:00:30]} f5 {[%emt 0:00:30] D02: 1 d4 d5 2 Nf3 sidelines, including 2...Nf6 3 g3 and 2...Nf6 3 Bf4} (8... Nxg3 9. hxg3 h6 10. Ne5 Nxe5 11. dxe5 Bd7 12. Qg4 Bf8 13. a4 Qc7 14. Nf3 O-O-O 15. Bb5 Kb8 16. O-O {1-0 (43) Kamsky,G (2741)-Jakovenko,D (2713) Khanty-Mansiysk 2013}) 9. Bb5 {[%emt 0:00:30]} Nxg3 {[%emt 0:00:30]} 10. hxg3 {[%emt 0:00:30]} O-O {[%emt 0:00:30]} 11. Bxc6 {[%emt 0:00:30]} bxc6 {[%emt 0:00:30]} 12. Ne5 {[%emt 0:00:30]} Qe8 {[%emt 0:00:30]} 13. Qa4 $146 {[%emt 0:00:30]} ({Predecessor:} 13. Qh5 Qxh5 14. Rxh5 {½-½ (31) Brunovsky,P (1435)-Koutny,P (1830) Bratislava 2006}) 13... Bd7 {[%emt 0:00:30]} (13... cxd4 $11 14. exd4 (14. cxd4 c5 $11) 14... c5 15. Qxe8 Rxe8) 14. Ndf3 {[%emt 0:00:30]} c4 {[%emt 0:00:30]} 15. Nxd7 {[%emt 0:00:30]} Qxd7 {[%emt 0:00:30]} 16. Ne5 {[%emt 0:00:30]} Qb7 {[%emt 0:00:30]} 17. Qxc6 {[%emt 0:00:30]} Qxc6 {[%emt 0:00:30]} 18. Nxc6 {[%emt 0:00:30]} Bd6 {[%emt 0:00:30]} 19. f4 {[%emt 0:00:30]} ({Better is} 19. Kd2 $16) 19... Rfc8 {[%emt 0:00:30]} 20. Ne5 {[%emt 0:00:30]} Rab8 {[%emt 0:00:30]} 21. O-O-O {[%emt 0:00:30]} a5 {[%emt 0:00:30]} 22. Kc2 {[%emt 0:00:30]} a4 {[%emt 0:00:30]} 23. a3 {[%emt 0:00:30]} Bxe5 {[%emt 0:00:30]} 24. dxe5 $15 {[%emt 0:00:30]} g6 $1 {[%emt 0:00:30]} 1/2-1/2